[Event "Late-Titled-Tuesday-Blitz-February-27-2024"]
[Site "Chess.com"]
[Date "2024.02.27"]
[Round "1"]
[White "GianmarcoVaR"]
[Black "laskakid"]
[Result "1-0"]
[WhiteElo "2707"]
[BlackElo "2404"]
[TimeControl "180+1"]
[EndTime "14:08:12 PST"]
[Termination "GianmarcoVaR won on time"]

1. e4 {[%clk 0:03:00.9]} 1... e5 {[%clk 0:02:59.7]} 2. Nf3 {[%clk 0:02:59.7]}
2... Nf6 {[%clk 0:02:59.8]} 3. Nxe5 {[%clk 0:02:55.5]} 3... Nxe4 {[%clk
0:02:59.8]} 4. Qe2 {[%clk 0:02:53.4]} 4... Qe7 {[%clk 0:02:59.9]} 5. Qxe4 {[%clk
0:02:51.1]} 5... d6 {[%clk 0:03:00]} 6. f4 {[%clk 0:02:31.9]} 6... dxe5 {[%clk
0:02:56.8]} 7. fxe5 {[%clk 0:02:31.7]} 7... Nc6 {[%clk 0:02:43.9]} 8. d4 {[%clk
0:02:12.4]} 8... f5 {[%clk 0:02:39.4]} 9. Qe3 {[%clk 0:02:04.2]} 9... Qh4+
{[%clk 0:02:37.7]} 10. g3 {[%clk 0:01:52.9]} 10... Qxd4 {[%clk 0:02:36.5]} 11.
Bg2 {[%clk 0:01:53.5]} 11... Qxe3+ {[%clk 0:02:24.7]} 12. Bxe3 {[%clk
0:01:53.6]} 12... Nxe5 {[%clk 0:02:19.4]} 13. Nc3 {[%clk 0:01:48.9]} 13... Bb4
{[%clk 0:02:09.5]} 14. O-O-O {[%clk 0:01:46.6]} 14... Bxc3 {[%clk 0:01:55.9]}
15. bxc3 {[%clk 0:01:47.5]} 15... O-O {[%clk 0:01:53.8]} 16. Bf4 {[%clk
0:01:47.7]} 16... Ng4 {[%clk 0:01:51.9]} 17. Rhe1 {[%clk 0:01:44.2]} 17... c6
{[%clk 0:01:44.1]} 18. Re7 {[%clk 0:01:43.7]} 18... Nf2 {[%clk 0:01:33.4]} 19.
Rd6 {[%clk 0:01:36.6]} 19... Ne4 {[%clk 0:01:33.3]} 20. Bxe4 {[%clk 0:01:35.7]}
20... fxe4 {[%clk 0:01:33.5]} 21. Be5 {[%clk 0:01:36.4]} 21... Rf1+ {[%clk
0:01:02.7]} 22. Kd2 {[%clk 0:01:36.4]} 22... Kf8 {[%clk 0:01:02.9]} 23. Rxg7
{[%clk 0:01:35.1]} 23... Bf5 {[%clk 0:00:51.5]} 24. Rf6+ {[%clk 0:01:33.6]}
24... Ke8 {[%clk 0:00:51.7]} 25. Bd6 {[%clk 0:01:04.4]} 25... Bh3 {[%clk
0:00:45.7]} 26. Re7+ {[%clk 0:00:46.9]} 26... Kd8 {[%clk 0:00:44.7]} 27. Rxf1
{[%clk 0:00:47.2]} 27... Bxf1 {[%clk 0:00:43.6]} 28. Rxh7 {[%clk 0:00:47.3]}
28... Rc8 {[%clk 0:00:35.7]} 29. Ke3 {[%clk 0:00:39.3]} 29... c5 {[%clk
0:00:30.5]} 30. Rh8+ {[%clk 0:00:24.7]} 30... Kd7 {[%clk 0:00:30]} 31. Rxc8
{[%clk 0:00:25.6]} 31... Kxc8 {[%clk 0:00:30.2]} 32. Bxc5 {[%clk 0:00:26.4]}
32... a6 {[%clk 0:00:22.8]} 33. Kxe4 {[%clk 0:00:25.3]} 33... Kd7 {[%clk
0:00:23.1]} 34. Kf5 {[%clk 0:00:24.1]} 34... Bh3+ {[%clk 0:00:21.3]} 35. Ke5
{[%clk 0:00:18.1]} 35... Kc6 {[%clk 0:00:18.1]} 36. Be3 {[%clk 0:00:16.9]} 36...
Kd7 {[%clk 0:00:17.9]} 37. c4 {[%clk 0:00:16.5]} 37... Bg4 {[%clk 0:00:16.2]}
38. c3 {[%clk 0:00:15.1]} 38... Bh3 {[%clk 0:00:15.7]} 39. a3 {[%clk 0:00:15.4]}
39... Ke7 {[%clk 0:00:15.6]} 40. a4 {[%clk 0:00:11.3]} 40... Kf7 {[%clk
0:00:15.2]} 41. c5 {[%clk 0:00:07.8]} 41... Bg2 {[%clk 0:00:11.4]} 42. h4 {[%clk
0:00:04.3]} 42... Bf3 {[%clk 0:00:09.9]} 43. Kf4 {[%clk 0:00:04.3]} 43... Bc6
{[%clk 0:00:09.2]} 44. a5 {[%clk 0:00:04.8]} 44... Kg6 {[%clk 0:00:08.2]} 45. g4
{[%clk 0:00:05.7]} 45... Bd7 {[%clk 0:00:08.2]} 46. h5+ {[%clk 0:00:06.6]} 46...
Kh6 {[%clk 0:00:05.9]} 47. Ke5+ {[%clk 0:00:06.6]} 47... Kg7 {[%clk 0:00:06.1]}
48. Kf4 {[%clk 0:00:06.3]} 48... Be6 {[%clk 0:00:05.4]} 49. g5 {[%clk
0:00:04.5]} 49... Bd5 {[%clk 0:00:03]} 50. g6 {[%clk 0:00:04.2]} 1-0

[Event "Late-Titled-Tuesday-Blitz-February-27-2024"]
[Site "Chess.com"]
[Date "2024.02.27"]
[Round "1"]
[White "Pingah9"]
[Black "protectiago"]
[Result "1-0"]
[WhiteElo "2543"]
[BlackElo "2094"]
[TimeControl "180+1"]
[EndTime "14:08:13 PST"]
[Termination "Pingah9 won on time"]

1. e4 {[%clk 0:00:52.9]} 1... e5 {[%clk 0:02:54.1]} 2. Nf3 {[%clk 0:00:52.5]}
2... Nc6 {[%clk 0:02:54.2]} 3. Bb5 {[%clk 0:00:53]} 3... a6 {[%clk 0:02:53.5]}
4. Ba4 {[%clk 0:00:53.4]} 4... Nf6 {[%clk 0:02:53.7]} 5. O-O {[%clk 0:00:53.1]}
5... Nxe4 {[%clk 0:02:53.8]} 6. Re1 {[%clk 0:00:53]} 6... Nc5 {[%clk 0:02:53.5]}
7. Bxc6 {[%clk 0:00:52.4]} 7... dxc6 {[%clk 0:02:52.2]} 8. Nxe5 {[%clk
0:00:51.5]} 8... Be6 {[%clk 0:02:52.2]} 9. d4 {[%clk 0:00:51.1]} 9... Nd7 {[%clk
0:02:52.8]} 10. Nd3 {[%clk 0:00:48.8]} 10... Be7 {[%clk 0:02:44.1]} 11. Nc3
{[%clk 0:00:47.8]} 11... Nf6 {[%clk 0:02:41.3]} 12. Be3 {[%clk 0:00:45.1]} 12...
O-O {[%clk 0:02:25.3]} 13. Nf4 {[%clk 0:00:44.4]} 13... Bf5 {[%clk 0:02:11.8]}
14. Qd2 {[%clk 0:00:42.3]} 14... Bb4 {[%clk 0:02:08]} 15. a3 {[%clk 0:00:39.8]}
15... Ne4 {[%clk 0:02:06.7]} 16. Qd3 {[%clk 0:00:30.7]} 16... Nd6 {[%clk
0:01:31.1]} 17. Qe2 {[%clk 0:00:27.9]} 17... Bxc3 {[%clk 0:01:30.2]} 18. bxc3
{[%clk 0:00:28.3]} 18... Ne4 {[%clk 0:01:30.2]} 19. Qc4 {[%clk 0:00:25.3]} 19...
Bg6 {[%clk 0:01:25.7]} 20. Nxg6 {[%clk 0:00:23]} 20... hxg6 {[%clk 0:01:24.2]}
21. Bf4 {[%clk 0:00:22.4]} 21... Nd6 {[%clk 0:01:22.4]} 22. Qd3 {[%clk 0:00:22]}
22... Re8 {[%clk 0:01:19.3]} 23. h3 {[%clk 0:00:20.1]} 23... Qd7 {[%clk
0:01:18.7]} 24. Be5 {[%clk 0:00:19.7]} 24... Re6 {[%clk 0:01:11.8]} 25. Rab1
{[%clk 0:00:20.1]} 25... b6 {[%clk 0:01:11.2]} 26. Bg3 {[%clk 0:00:19.7]} 26...
Rae8 {[%clk 0:01:10.9]} 27. Re5 {[%clk 0:00:20]} 27... Nf5 {[%clk 0:01:05.4]}
28. Bf4 {[%clk 0:00:18.6]} 28... f6 {[%clk 0:01:02.5]} 29. Rxe6 {[%clk
0:00:16.6]} 29... Rxe6 {[%clk 0:01:02.7]} 30. g4 {[%clk 0:00:16.3]} 30... Ne7
{[%clk 0:00:58.5]} 31. c4 {[%clk 0:00:16]} 31... Nc8 {[%clk 0:00:39.6]} 32. c3
{[%clk 0:00:16.4]} 32... Nd6 {[%clk 0:00:38.8]} 33. Qxg6 {[%clk 0:00:16.6]}
33... Re4 {[%clk 0:00:35.5]} 34. Bxd6 {[%clk 0:00:13.2]} 34... Re2 {[%clk
0:00:18]} 35. Bg3 {[%clk 0:00:13.6]} 35... Qe6 {[%clk 0:00:17.5]} 36. Qf5 {[%clk
0:00:13.3]} 36... Qxc4 {[%clk 0:00:17.3]} 37. Rf1 {[%clk 0:00:11.5]} 37... Ra2
{[%clk 0:00:15.8]} 38. Qc8+ {[%clk 0:00:11.5]} 38... Kh7 {[%clk 0:00:14.9]} 39.
Qxc7 {[%clk 0:00:11.9]} 39... Rxa3 {[%clk 0:00:14.5]} 40. Qxb6 {[%clk
0:00:11.5]} 40... Rxc3 {[%clk 0:00:13.4]} 41. Qc7 {[%clk 0:00:10.9]} 41... Qxd4
{[%clk 0:00:12.8]} 42. Qf4 {[%clk 0:00:08.5]} 42... Qxf4 {[%clk 0:00:12.3]} 43.
Bxf4 {[%clk 0:00:08.4]} 43... Rxh3 {[%clk 0:00:11.5]} 44. f3 {[%clk 0:00:08.8]}
44... Kg6 {[%clk 0:00:08.6]} 45. Kg2 {[%clk 0:00:09.2]} 45... Rh8 {[%clk
0:00:09.1]} 46. Rc1 {[%clk 0:00:09.3]} 46... Rc8 {[%clk 0:00:08.8]} 47. Be3
{[%clk 0:00:09.6]} 47... Kf7 {[%clk 0:00:07.9]} 48. Bc5 {[%clk 0:00:09.9]} 48...
Ke6 {[%clk 0:00:08.1]} 49. Rd1 {[%clk 0:00:09.8]} 49... a5 {[%clk 0:00:07.4]}
50. f4 {[%clk 0:00:09.8]} 50... Kf7 {[%clk 0:00:07.1]} 51. f5 {[%clk 0:00:09.4]}
51... g6 {[%clk 0:00:05.8]} 52. Rd7+ {[%clk 0:00:09.5]} 52... Ke8 {[%clk
0:00:06.1]} 53. Ra7 {[%clk 0:00:10.4]} 53... gxf5 {[%clk 0:00:05.9]} 54. gxf5
{[%clk 0:00:10.4]} 54... Rb8 {[%clk 0:00:05.5]} 55. Kf3 {[%clk 0:00:09.6]} 55...
Rb3+ {[%clk 0:00:05]} 56. Ke4 {[%clk 0:00:09.5]} 56... Rb5 {[%clk 0:00:04.6]}
57. Bd6 {[%clk 0:00:09]} 57... a4 {[%clk 0:00:03.1]} 58. Re7+ {[%clk 0:00:09.4]}
58... Kd8 {[%clk 0:00:03]} 59. Ra7 {[%clk 0:00:09.3]} 1-0

[Event "Late-Titled-Tuesday-Blitz-February-27-2024"]
[Site "Chess.com"]
[Date "2024.02.27"]
[Round "1"]
[White "Orion2127989"]
[Black "Bilan_Danila"]
[Result "0-1"]
[WhiteElo "2152"]
[BlackElo "2556"]
[TimeControl "180+1"]
[EndTime "14:08:14 PST"]
[Termination "Bilan_Danila won by resignation"]

1. d4 {[%clk 0:02:59.7]} 1... d5 {[%clk 0:02:58.3]} 2. Nf3 {[%clk 0:02:59.4]}
2... Nf6 {[%clk 0:02:56.8]} 3. c4 {[%clk 0:02:59.1]} 3... c6 {[%clk 0:02:57]} 4.
Nc3 {[%clk 0:02:59.3]} 4... e6 {[%clk 0:02:56.8]} 5. cxd5 {[%clk 0:02:58.9]}
5... exd5 {[%clk 0:02:55.6]} 6. Bg5 {[%clk 0:02:59.2]} 6... Be7 {[%clk
0:02:51.1]} 7. Qc2 {[%clk 0:02:58.8]} 7... g6 {[%clk 0:02:49.1]} 8. e3 {[%clk
0:02:58.5]} 8... Bf5 {[%clk 0:02:49.2]} 9. Bd3 {[%clk 0:02:58.9]} 9... Bxd3
{[%clk 0:02:48.7]} 10. Qxd3 {[%clk 0:02:59.8]} 10... O-O {[%clk 0:02:47]} 11.
O-O {[%clk 0:02:59]} 11... Nbd7 {[%clk 0:02:46.2]} 12. Rab1 {[%clk 0:02:56.9]}
12... a5 {[%clk 0:02:42.5]} 13. a3 {[%clk 0:02:55.3]} 13... Ne4 {[%clk
0:02:37.3]} 14. Bh6 {[%clk 0:02:49.3]} 14... Re8 {[%clk 0:02:33.2]} 15. Rfc1
{[%clk 0:02:48.7]} 15... Bd6 {[%clk 0:02:17.9]} 16. Qc2 {[%clk 0:02:35.9]} 16...
Ndf6 {[%clk 0:02:08.8]} 17. Bf4 {[%clk 0:02:21.6]} 17... Bxf4 {[%clk 0:01:52.2]}
18. exf4 {[%clk 0:02:22.5]} 18... Qd6 {[%clk 0:01:44]} 19. g3 {[%clk 0:02:21.2]}
19... Nd7 {[%clk 0:01:31.9]} 20. b4 {[%clk 0:02:17]} 20... axb4 {[%clk
0:01:24.9]} 21. axb4 {[%clk 0:02:17.9]} 21... Kg7 {[%clk 0:01:17.9]} 22. Ne5
{[%clk 0:02:12.1]} 22... Nxc3 {[%clk 0:00:58.5]} 23. Qxc3 {[%clk 0:02:11.1]}
23... Nb6 {[%clk 0:00:55.5]} 24. b5 {[%clk 0:02:05.4]} 24... Na4 {[%clk
0:00:29.3]} 25. Qb3 {[%clk 0:02:01.6]} 25... f6 {[%clk 0:00:27.8]} 26. Nf3
{[%clk 0:01:54.3]} 26... Reb8 {[%clk 0:00:09.3]} 27. Ra1 {[%clk 0:01:45.5]}
27... Nb6 {[%clk 0:00:05.7]} 28. Rxa8 {[%clk 0:01:43.2]} 28... Nxa8 {[%clk
0:00:04.3]} 29. Qa4 {[%clk 0:01:33.2]} 29... Nb6 {[%clk 0:00:03.4]} 30. Qa7
{[%clk 0:01:18.3]} 30... Nd7 {[%clk 0:00:03.7]} 31. bxc6 {[%clk 0:00:40.4]}
31... bxc6 {[%clk 0:00:03.6]} 32. Re1 {[%clk 0:00:37.1]} 32... Rc8 {[%clk
0:00:03.4]} 33. Qa5 {[%clk 0:00:32]} 33... Kf7 {[%clk 0:00:03.5]} 34. Qd2 {[%clk
0:00:29.3]} 34... Re8 {[%clk 0:00:03.6]} 35. Rxe8 {[%clk 0:00:28.5]} 35... Kxe8
{[%clk 0:00:04.5]} 36. Qe3+ {[%clk 0:00:27.6]} 36... Kf7 {[%clk 0:00:04.7]} 37.
Nd2 {[%clk 0:00:26.4]} 37... Nb6 {[%clk 0:00:04.2]} 38. h4 {[%clk 0:00:24.5]}
38... Nd7 {[%clk 0:00:04.4]} 39. Qf3 {[%clk 0:00:23.7]} 39... Qe6 {[%clk
0:00:04.8]} 40. Kg2 {[%clk 0:00:21.9]} 40... Nb6 {[%clk 0:00:04.6]} 41. h5
{[%clk 0:00:21.8]} 41... Nc4 {[%clk 0:00:04.6]} 42. hxg6+ {[%clk 0:00:21.3]}
42... hxg6 {[%clk 0:00:05.5]} 43. Nf1 {[%clk 0:00:21.6]} 43... f5 {[%clk
0:00:05]} 44. Ne3 {[%clk 0:00:21.6]} 44... Nd2 {[%clk 0:00:03.8]} 45. Qe2 {[%clk
0:00:20.5]} 45... Qe4+ {[%clk 0:00:04.5]} 46. f3 {[%clk 0:00:19.3]} 46... Qxd4
{[%clk 0:00:04.3]} 47. Nf1 {[%clk 0:00:17.8]} 47... Nc4 {[%clk 0:00:03.6]} 48.
Qa2 {[%clk 0:00:16.6]} 48... Qb2+ {[%clk 0:00:03.9]} 49. Qxb2 {[%clk 0:00:16.4]}
49... Nxb2 {[%clk 0:00:04.8]} 50. Ne3 {[%clk 0:00:17.1]} 50... Ke6 {[%clk
0:00:05.4]} 51. g4 {[%clk 0:00:17.2]} 51... d4 {[%clk 0:00:06]} 52. gxf5+ {[%clk
0:00:16.9]} 52... gxf5 {[%clk 0:00:06.9]} 53. Nd1 {[%clk 0:00:17]} 53... Nxd1
{[%clk 0:00:06.7]} 0-1

[Event "Late-Titled-Tuesday-Blitz-February-27-2024"]
[Site "Chess.com"]
[Date "2024.02.27"]
[Round "1"]
[White "AryanTari"]
[Black "dosto07"]
[Result "1-0"]
[WhiteElo "2944"]
[BlackElo "2503"]
[TimeControl "180+1"]
[EndTime "14:08:21 PST"]
[Termination "AryanTari won by resignation"]

1. d4 {[%clk 0:02:26.1]} 1... d5 {[%clk 0:02:59.4]} 2. Bf4 {[%clk 0:02:03.8]}
2... Nf6 {[%clk 0:02:59]} 3. e3 {[%clk 0:02:03.6]} 3... c5 {[%clk 0:02:55.7]} 4.
dxc5 {[%clk 0:01:59.6]} 4... Nc6 {[%clk 0:02:48.5]} 5. Bb5 {[%clk 0:01:57.2]}
5... Qa5+ {[%clk 0:02:33.4]} 6. Nc3 {[%clk 0:01:56.3]} 6... e6 {[%clk
0:01:57.1]} 7. Qd4 {[%clk 0:01:24.9]} 7... Bd7 {[%clk 0:01:56.7]} 8. Bxc6 {[%clk
0:01:24.5]} 8... Bxc6 {[%clk 0:01:55.7]} 9. b4 {[%clk 0:01:24.2]} 9... Qa3
{[%clk 0:01:54.9]} 10. Bd6 {[%clk 0:00:50.2]} 10... Bxd6 {[%clk 0:01:47.3]} 11.
cxd6 {[%clk 0:00:51.1]} 11... Qb2 {[%clk 0:01:27.1]} 12. Nb5 {[%clk 0:00:24.2]}
12... Qxd4 {[%clk 0:00:52.9]} 13. Nxd4 {[%clk 0:00:25.1]} 13... Kd7 {[%clk
0:00:48.8]} 14. b5 {[%clk 0:00:24.8]} 14... Kxd6 {[%clk 0:00:46.8]} 15. bxc6
{[%clk 0:00:25.1]} 15... bxc6 {[%clk 0:00:47.7]} 16. Ngf3 {[%clk 0:00:25.1]}
16... Rab8 {[%clk 0:00:44.9]} 17. Ke2 {[%clk 0:00:21.2]} 17... Rb2 {[%clk
0:00:44.2]} 18. Rhb1 {[%clk 0:00:20]} 18... Rhb8 {[%clk 0:00:43.5]} 19. Rxb2
{[%clk 0:00:10.7]} 19... Rxb2 {[%clk 0:00:43.1]} 20. Ne1 {[%clk 0:00:08.9]}
20... c5 {[%clk 0:00:36.2]} 21. Nd3 {[%clk 0:00:04.7]} 21... Rb6 {[%clk
0:00:34]} 22. Nf3 {[%clk 0:00:05.3]} 22... Ne4 {[%clk 0:00:31.8]} 23. Nd2 {[%clk
0:00:04]} 23... Nc3+ {[%clk 0:00:28.8]} 24. Kf3 {[%clk 0:00:04.5]} 24... c4
{[%clk 0:00:29.4]} 25. Nf4 {[%clk 0:00:04.2]} 25... Rb2 {[%clk 0:00:28.5]} 26.
Ne2 {[%clk 0:00:04.5]} 26... Rxc2 {[%clk 0:00:26.3]} 27. Nxc3 {[%clk 0:00:04.3]}
27... Rxc3 {[%clk 0:00:26.9]} 28. Rb1 {[%clk 0:00:03.8]} 28... Kc6 {[%clk
0:00:23.8]} 29. Rb8 {[%clk 0:00:03.3]} 29... Ra3 {[%clk 0:00:23.5]} 30. Rf8
{[%clk 0:00:02.8]} 30... Rxa2 {[%clk 0:00:21.3]} 31. Nf1 {[%clk 0:00:03.2]}
31... a5 {[%clk 0:00:12]} 32. Rxf7 {[%clk 0:00:03.4]} 32... c3 {[%clk
0:00:12.4]} 33. Rf8 {[%clk 0:00:03.9]} 33... Kb5 {[%clk 0:00:11.6]} 34. Rc8
{[%clk 0:00:03.9]} 34... Kb4 {[%clk 0:00:11.5]} 35. Ng3 {[%clk 0:00:03.4]} 35...
c2 {[%clk 0:00:11]} 36. Ne2 {[%clk 0:00:03]} 36... Kb3 {[%clk 0:00:10.6]} 37.
Nd4+ {[%clk 0:00:03.1]} 37... Kb4 {[%clk 0:00:09.2]} 38. Nxc2+ {[%clk
0:00:03.3]} 38... Kb3 {[%clk 0:00:08.8]} 39. Nd4+ {[%clk 0:00:03.8]} 39... Kb4
{[%clk 0:00:09.2]} 40. Nxe6 {[%clk 0:00:04.3]} 40... a4 {[%clk 0:00:08.8]} 41.
Nd4 {[%clk 0:00:05]} 41... a3 {[%clk 0:00:08.5]} 42. Rb8+ {[%clk 0:00:05.6]}
42... Kc4 {[%clk 0:00:08.6]} 43. Ra8 {[%clk 0:00:06]} 43... Ra1 {[%clk
0:00:08.8]} 44. g4 {[%clk 0:00:05.5]} 44... a2 {[%clk 0:00:07.6]} 45. Nc2 {[%clk
0:00:05.1]} 45... Rh1 {[%clk 0:00:06.9]} 46. Rxa2 {[%clk 0:00:05.5]} 46... Rxh2
{[%clk 0:00:07.2]} 47. Ra7 {[%clk 0:00:05.8]} 47... h5 {[%clk 0:00:06]} 48. gxh5
{[%clk 0:00:05.1]} 48... Rxh5 {[%clk 0:00:05.2]} 49. Nd4 {[%clk 0:00:05.7]}
49... Rg5 {[%clk 0:00:04.7]} 50. Rf7 {[%clk 0:00:05.7]} 50... Kd3 {[%clk
0:00:04.6]} 51. Ne6 {[%clk 0:00:05.1]} 51... Rg1 {[%clk 0:00:04.4]} 52. Nf4+
{[%clk 0:00:06]} 52... Kc4 {[%clk 0:00:02.7]} 53. Rc7+ {[%clk 0:00:06.1]} 53...
Kb5 {[%clk 0:00:03]} 54. Nxd5 {[%clk 0:00:06.6]} 54... g5 {[%clk 0:00:03.4]} 55.
Nf6 {[%clk 0:00:06.7]} 55... g4+ {[%clk 0:00:03.6]} 56. Nxg4 {[%clk 0:00:07.2]}
56... Kb6 {[%clk 0:00:03.6]} 57. Rc2 {[%clk 0:00:07.2]} 57... Ra1 {[%clk
0:00:03.4]} 58. e4 {[%clk 0:00:07.6]} 58... Ra3+ {[%clk 0:00:03]} 59. Ne3 {[%clk
0:00:07.9]} 59... Ra8 {[%clk 0:00:03.8]} 60. e5 {[%clk 0:00:08.2]} 60... Rf8+
{[%clk 0:00:04.4]} 61. Ke4 {[%clk 0:00:08.8]} 61... Kb5 {[%clk 0:00:05.2]} 62.
f4 {[%clk 0:00:09.2]} 62... Kb4 {[%clk 0:00:06.1]} 63. f5 {[%clk 0:00:09.8]}
63... Kb3 {[%clk 0:00:06.4]} 64. e6 {[%clk 0:00:09.5]} 64... Rh8 {[%clk
0:00:05.9]} 65. Rc7 {[%clk 0:00:09.5]} 65... Rh4+ {[%clk 0:00:06.6]} 66. Ke5
{[%clk 0:00:09.6]} 1-0

[Event "Late-Titled-Tuesday-Blitz-February-27-2024"]
[Site "Chess.com"]
[Date "2024.02.27"]
[Round "1"]
[White "MITerryble"]
[Black "JackRodgers"]
[Result "1-0"]
[WhiteElo "3016"]
[BlackElo "2509"]
[TimeControl "180+1"]
[EndTime "14:08:27 PST"]
[Termination "MITerryble won by checkmate"]

1. Nf3 {[%clk 0:02:59.7]} 1... c5 {[%clk 0:02:59.8]} 2. g3 {[%clk 0:02:55.9]}
2... g6 {[%clk 0:02:58.2]} 3. Bg2 {[%clk 0:02:56.3]} 3... Bg7 {[%clk 0:02:58.7]}
4. O-O {[%clk 0:02:56.9]} 4... Nf6 {[%clk 0:02:59.3]} 5. d3 {[%clk 0:02:56.1]}
5... O-O {[%clk 0:02:58.5]} 6. e4 {[%clk 0:02:55.4]} 6... d6 {[%clk 0:02:56]} 7.
Nbd2 {[%clk 0:02:49.6]} 7... Nc6 {[%clk 0:02:55.3]} 8. Re1 {[%clk 0:02:48.6]}
8... Bg4 {[%clk 0:02:45.8]} 9. h3 {[%clk 0:02:48.8]} 9... Bxf3 {[%clk
0:02:45.9]} 10. Nxf3 {[%clk 0:02:49.5]} 10... Rc8 {[%clk 0:02:46]} 11. a4 {[%clk
0:02:39]} 11... a6 {[%clk 0:02:44.9]} 12. c3 {[%clk 0:02:38.5]} 12... b5 {[%clk
0:02:44.6]} 13. axb5 {[%clk 0:02:39.4]} 13... axb5 {[%clk 0:02:45.5]} 14. Bg5
{[%clk 0:02:23.1]} 14... b4 {[%clk 0:02:43.3]} 15. Qd2 {[%clk 0:02:22]} 15...
bxc3 {[%clk 0:02:42.8]} 16. bxc3 {[%clk 0:02:21.8]} 16... Re8 {[%clk 0:02:23.6]}
17. Ra6 {[%clk 0:02:11.3]} 17... Nb8 {[%clk 0:02:16.1]} 18. Ra3 {[%clk
0:02:01.4]} 18... Nc6 {[%clk 0:02:16.2]} 19. Rea1 {[%clk 0:02:00.4]} 19... Qb6
{[%clk 0:02:09.7]} 20. Qc2 {[%clk 0:01:50.7]} 20... h6 {[%clk 0:01:58]} 21. Be3
{[%clk 0:01:48]} 21... Qc7 {[%clk 0:01:57.8]} 22. Nd2 {[%clk 0:01:46.6]} 22...
Nd7 {[%clk 0:01:53.4]} 23. Kh2 {[%clk 0:01:43.6]} 23... Nb6 {[%clk 0:01:44.8]}
24. h4 {[%clk 0:01:14.3]} 24... Ra8 {[%clk 0:01:36.9]} 25. f4 {[%clk 0:01:10.9]}
25... Rxa3 {[%clk 0:01:28]} 26. Rxa3 {[%clk 0:01:11.8]} 26... Rb8 {[%clk
0:01:27.3]} 27. h5 {[%clk 0:01:09.3]} 27... Nd7 {[%clk 0:01:00.8]} 28. hxg6
{[%clk 0:01:07.9]} 28... fxg6 {[%clk 0:01:01.7]} 29. d4 {[%clk 0:00:56.5]} 29...
cxd4 {[%clk 0:00:55.2]} 30. cxd4 {[%clk 0:00:57.4]} 30... Qb6 {[%clk 0:00:48.3]}
31. e5 {[%clk 0:00:53.5]} 31... Nb4 {[%clk 0:00:39.1]} 32. Qxg6 {[%clk
0:00:52.8]} 32... Nf8 {[%clk 0:00:35.7]} 33. Qb1 {[%clk 0:00:40.4]} 33... Qd8
{[%clk 0:00:30.6]} 34. Rb3 {[%clk 0:00:39.1]} 34... Na6 {[%clk 0:00:29.7]} 35.
Rxb8 {[%clk 0:00:36.8]} 35... Nxb8 {[%clk 0:00:30.6]} 36. Nf3 {[%clk 0:00:33.8]}
36... Nbd7 {[%clk 0:00:30.3]} 37. Nh4 {[%clk 0:00:33.8]} 37... Qb6 {[%clk
0:00:26.9]} 38. Qd3 {[%clk 0:00:29.9]} 38... Qb2 {[%clk 0:00:22.1]} 39. Nf5
{[%clk 0:00:28.9]} 39... Kf7 {[%clk 0:00:20.6]} 40. Qd1 {[%clk 0:00:24]} 40...
dxe5 {[%clk 0:00:14.7]} 41. dxe5 {[%clk 0:00:23.7]} 41... e6 {[%clk 0:00:12.9]}
42. Qh5+ {[%clk 0:00:14.7]} 42... Kg8 {[%clk 0:00:13.2]} 43. Nxh6+ {[%clk
0:00:15.3]} 43... Bxh6 {[%clk 0:00:12.6]} 44. Qxh6 {[%clk 0:00:16.2]} 44... Qc2
{[%clk 0:00:12]} 45. Qg5+ {[%clk 0:00:14.7]} 45... Qg6 {[%clk 0:00:10.8]} 46.
Qxg6+ {[%clk 0:00:15]} 46... Nxg6 {[%clk 0:00:11.7]} 47. Be4 {[%clk 0:00:15.1]}
47... Ngf8 {[%clk 0:00:12]} 48. Kh3 {[%clk 0:00:14.9]} 48... Kf7 {[%clk
0:00:12.5]} 49. Kg4 {[%clk 0:00:15.2]} 49... Nb8 {[%clk 0:00:09.2]} 50. Kh5
{[%clk 0:00:14.4]} 50... Na6 {[%clk 0:00:09.3]} 51. g4 {[%clk 0:00:14.5]} 51...
Nb4 {[%clk 0:00:08.9]} 52. Bc5 {[%clk 0:00:13.4]} 52... Na6 {[%clk 0:00:07.3]}
53. Bd6 {[%clk 0:00:13.9]} 53... Nd7 {[%clk 0:00:05.7]} 54. g5 {[%clk
0:00:08.7]} 54... Nac5 {[%clk 0:00:06]} 55. Bc6 {[%clk 0:00:09]} 55... Kg7
{[%clk 0:00:03.6]} 56. Kg4 {[%clk 0:00:06.3]} 56... Kf7 {[%clk 0:00:03.7]} 57.
Kf3 {[%clk 0:00:06.4]} 57... Ke8 {[%clk 0:00:03]} 58. Bxc5 {[%clk 0:00:05.5]}
58... Kf7 {[%clk 0:00:02.3]} 59. Bxd7 {[%clk 0:00:05.8]} 59... Kg6 {[%clk
0:00:03.2]} 60. Bxe6 {[%clk 0:00:06.3]} 60... Kh7 {[%clk 0:00:04]} 61. Kg4
{[%clk 0:00:06.4]} 61... Kg7 {[%clk 0:00:04.9]} 62. f5 {[%clk 0:00:07]} 62...
Kh7 {[%clk 0:00:05.8]} 63. f6 {[%clk 0:00:07.6]} 63... Kg6 {[%clk 0:00:06.2]}
64. Bf5+ {[%clk 0:00:08.2]} 64... Kf7 {[%clk 0:00:06.5]} 65. e6+ {[%clk
0:00:08.8]} 65... Kg8 {[%clk 0:00:07.4]} 66. f7+ {[%clk 0:00:08.8]} 66... Kg7
{[%clk 0:00:07.6]} 67. f8=Q# {[%clk 0:00:09.1]} 1-0